fUSD/lending_fUSD_20240109
["ID","MTS","AMOUNT","RATE_DAILY","PERIOD"]
[310968677,1704836046658,-1387.57,0.00042082,30]
[310968678,1704836046668,-7300.87,0.00042082,30]
[310968679,1704836046677,-347.2,0.00042082,30]
[310968680,1704836046687,-1200.98,0.00042082,30]
[310968681,1704836046697,-1010.7,0.00042082,30]
[310968682,1704836046707,-2024.47,0.00042082,30]
[310968683,1704836046718,-3584.51,0.00042082,30]
[310968684,1704836046728,-663.65,0.00042082,30]
[310968685,1704836046738,-1022.82,0.00042082,30]
[310968686,1704836046748,-829.24,0.00042082,30]
[310968687,1704836046758,-719.05,0.00042082,30]
[310968688,1704836046768,-1279.36,0.00042082,30]
[310968689,1704836046778,-500.0,0.00042082,30]
[310968690,1704836046788,-1955.18,0.00042082,30]
[310968691,1704836046798,-5923.58,0.00042082,30]
[310968692,1704836046807,-1276.96,0.00042082,30]
[310968693,1704836046825,-1076.29,0.00042082,30]
[310968694,1704836046835,-3773.23,0.00042082,30]
[310968695,1704836046845,-3976.14,0.00042082,30]
[310968696,1704836046856,-2969.33,0.00042082,30]
[310968697,1704836046865,-1442.56,0.00042082,30]
[310968698,1704836046875,-1085.14,0.00042082,30]
[310968699,1704836046885,-546.98,0.00042082,30]
[310968700,1704836046896,-1958.44,0.00042082,30]
[310968701,1704836046905,-276.07913757,0.00042082,30]
[310968702,1704836046915,-6261.12,0.00042082,30]
[310968703,1704836046925,-500.0,0.00042082,30]
[310968704,1704836046935,-1066.92,0.00042082,30]
[310968705,1704836046945,-645.66,0.00042082,30]
[310968706,1704836046956,-894.85,0.00042082,30]
[310968707,1704836046965,-2874.62,0.00042082,30]
[310968708,1704836046974,-1757.07,0.00042082,30]
[310968709,1704836046984,-3862.71,0.00042082,30]
[310968710,1704836046993,-4543.27,0.00042082,30]
[310968711,1704836047002,-1341.14,0.00042082,30]
[310968712,1704836047012,-577.82,0.00042082,30]
[310968713,1704836047022,-500.0,0.00042082,30]
[310968714,1704836047032,-500.0,0.00042082,30]
[310968715,1704836047041,-901.82,0.00042082,30]
[310968716,1704836047051,-191.54956747,0.00042082,30]
[310968717,1704836047060,-3856.08,0.00042082,30]
[310968718,1704836047069,-1349.44,0.00042082,30]
[310968719,1704836047079,-1130.33,0.00042082,30]
[310968720,1704836047089,-1641.57,0.00042082,30]
[310968721,1704836047098,-1586.06,0.00042082,30]
[310968723,1704836047108,-588.78,0.00042082,30]
[310968724,1704836047117,-760.68,0.00042082,30]
[310968725,1704836047127,-857.88,0.00042082,30]
[310968726,1704836047136,-3762.07,0.00042082,30]
[310968727,1704836047146,-500.0,0.00042082,30]
[310968728,1704836047155,-536.72,0.00042082,30]
[310968729,1704836047165,-550.1,0.00042082,30]
[310968730,1704836047174,-4355.86,0.00042082,30]
[310968731,1704836047183,-4420.44,0.00042082,30]
[310968732,1704836047192,-1511.36,0.00042082,30]
[310968733,1704836047202,-500.0,0.00042082,30]
[310968734,1704836047216,-1161.02,0.00042082,30]
[310968735,1704836047226,-10725.89,0.00042082,30]
[310968736,1704836047235,-1044.46,0.00042082,30]
[310968737,1704836047244,-929.83,0.00042082,30]
[310968738,1704836047254,-500.0,0.00042082,30]
[310968739,1704836047264,-867.5,0.00042082,30]
[310968740,1704836047274,-720.34,0.00042082,30]
[310968741,1704836047284,-6977.93,0.00042082,30]
[310968742,1704836047293,-500.0,0.00042082,30]
[310968743,1704836047304,-964.23,0.00042082,30]
[310968744,1704836047313,-3056.94,0.00042082,30]
[310968745,1704836047323,-1586.56,0.00042082,30]
[310968746,1704836047333,-437.74685728,0.00042082,7]
[310968747,1704836047342,-500.0,0.00042082,30]
[310968748,1704836047352,-1370.1,0.00042082,30]
[310968749,1704836047361,-3469.89,0.00042082,30]
[310968750,1704836047371,-500.0,0.00042082,30]
[310968751,1704836047383,-648.93,0.00042082,30]
[310968752,1704836047393,-994.23,0.00042082,30]
[310968753,1704836047403,-500.0,0.00042082,30]
[310968754,1704836047415,-3974.35,0.00042082,30]
[310968755,1704836047425,-500.0,0.00042082,30]
[310968756,1704836047435,-575.24,0.00042082,30]
[310968757,1704836047445,-1208.62,0.00042082,30]
[310968758,1704836047456,-500.0,0.00042082,30]
[310968759,1704836047469,-500.0,0.00042082,30]
[310968760,1704836047480,-840.42,0.00042082,30]
[310968761,1704836047491,-442.62,0.00042082,30]
[310968762,1704836047501,-500.0,0.00042082,30]
[310968763,1704836047510,-20052.88,0.00042082,30]
[310968764,1704836047520,-3280.13,0.00042082,30]
[310968765,1704836047529,-1154.2,0.00042082,30]
[310968766,1704836047539,-1336.18,0.00042082,30]
[310968767,1704836047548,-500.0,0.00042082,30]
[310968768,1704836047559,-3059.66,0.00042082,30]
[310968769,1704836047569,-808.78,0.00042082,30]
[310968770,1704836047578,-5796.52,0.00042082,30]
[310968771,1704836047588,-595.48,0.00042082,30]
[310968772,1704836047598,-772.79,0.00042082,30]
[310968773,1704836047608,-1773.57,0.00042082,30]
[310968774,1704836047618,-500.0,0.00042082,30]
[310968775,1704836047627,-1436.73,0.00042082,30]
[310968776,1704836047637,-1274.83,0.00042082,30]
[310968777,1704836047646,-823.79,0.00042082,30]
[310968778,1704836047656,-767.78,0.00042082,30]
[310968779,1704836047666,-500.0,0.00042082,30]
[310968780,1704836047675,-500.0,0.00042082,30]
[310968781,1704836047685,-500.0,0.00042082,30]
[310968782,1704836047694,-1764.13,0.00042082,30]
[310968783,1704836047704,-924.78,0.00042082,30]
[310968784,1704836047718,-1944.68,0.00042082,30]
[310968785,1704836047728,-10402.25,0.00042082,30]
[310968786,1704836047738,-4303.2,0.00042082,30]
[310968787,1704836047747,-4288.57,0.00042082,30]
[310968788,1704836047757,-7059.7,0.00042082,30]
[310968789,1704836047767,-6327.7,0.00042082,30]
[310968790,1704836047777,-1629.67,0.00042082,30]
[310968791,1704836047806,-2082.36,0.00042082,30]
[310968792,1704836047816,-699.1,0.00042082,30]
[310968793,1704836047826,-500.0,0.00042082,30]
[310968794,1704836047836,-3000.0,0.0004209,12]
[310968795,1704836047847,-1000.0,0.000421,7]
[310968796,1704836047857,-500.0,0.00042164,30]
[310968797,1704836047867,-500.0,0.00042164,30]
[310968798,1704836047878,-500.0,0.00042164,30]
[310968799,1704836047887,-519.07,0.00042164,30]
[310968800,1704836047897,-500.0,0.00042164,30]
[310968801,1704836047907,-622.15301363,0.00042164,30]
[310968802,1704836047917,-363.18331756,0.00042164,30]
[310968803,1704836047927,-1003.07,0.00042164,6]
[310968804,1704836047937,-500.0,0.00042164,30]
[310968805,1704836047947,-599.12,0.00042164,30]
[310968806,1704836047961,-500.0,0.00042164,30]
[310968807,1704836047970,-870.95,0.00042164,30]
[310968808,1704836047980,-774.16,0.00042164,30]
[310968809,1704836047990,-500.0,0.00042164,30]
[310968810,1704836047999,-500.0,0.00042164,2]
[310968811,1704836048009,-628.44,0.00042164,30]
[310968812,1704836048018,-500.0,0.00042164,30]
[310968813,1704836048028,-500.0,0.00042164,30]
[310968814,1704836048037,-583.93,0.00042164,30]
[310968815,1704836048046,-664.43,0.00042164,30]
[310968816,1704836048056,-642.11,0.00042164,30]
[310968817,1704836048065,-1006.44,0.00042164,30]
[310968818,1704836048074,-785.15,0.00042164,30]
[310968819,1704836048084,-500.0,0.00042164,30]
[310968820,1704836048094,-500.0,0.00042164,30]
[310968821,1704836048103,-500.0,0.00042164,30]
[310968822,1704836048113,-647.85,0.00042164,30]
[310968823,1704836048123,-1176.3,0.00042164,30]
[310968824,1704836048133,-892.9,0.00042164,30]
[310968825,1704836048144,-875.0,0.00042164,30]
[310968826,1704836048154,-500.0,0.00042164,30]
[310968827,1704836048164,-500.0,0.00042164,30]
[310968828,1704836048174,-924.33,0.00042164,30]
[310968829,1704836048184,-552.38,0.00042164,30]
[310968830,1704836048194,-1079.22,0.00042164,30]
[310968831,1704836048204,-1021.0,0.00042164,30]
[310968832,1704836048225,-500.0,0.00042164,30]
[310968833,1704836048234,-500.0,0.00042164,30]
[310968834,1704836048244,-500.0,0.00042164,30]
[310968835,1704836048254,-749.02,0.00042164,30]
[310968836,1704836048264,-500.0,0.00042164,30]
[310968837,1704836048274,-507.33,0.00042164,30]
[310968838,1704836048283,-500.0,0.00042164,30]
[310968839,1704836048293,-500.0,0.00042164,30]
[310968840,1704836048303,-500.0,0.00042164,30]
[310968841,1704836048313,-556.06,0.00042164,30]
[310968842,1704836048322,-500.0,0.00042164,30]
[310968843,1704836048332,-500.0,0.00042164,30]
[310968844,1704836048342,-544.95,0.00042164,30]
[310968845,1704836048352,-889.52,0.00042164,30]
[310968846,1704836048361,-643.58,0.00042164,30]
[310968847,1704836048371,-857.15,0.00042164,30]
[310968848,1704836048385,-549.07,0.00042164,30]
[310968849,1704836048395,-674.98,0.00042164,30]
[310968850,1704836048404,-500.0,0.00042164,30]
[310968851,1704836048414,-879.09,0.00042164,30]
[310968852,1704836048424,-500.0,0.00042164,30]
[310968853,1704836048435,-525.43,0.00042164,30]
[310968854,1704836048444,-740.92,0.00042164,30]
[310968855,1704836048454,-500.0,0.00042164,30]
[310968856,1704836048474,-500.0,0.00042164,30]
[310968857,1704836048483,-894.54,0.00042164,30]
[310968858,1704836048493,-1210.61,0.00042164,30]
[310968859,1704836048503,-500.0,0.00042164,30]
[310968860,1704836048513,-1262.57,0.00042164,30]
[310968861,1704836048523,-571.45,0.00042164,30]
[310968862,1704836048533,-767.71,0.00042164,30]
[310968863,1704836048545,-500.0,0.00042164,30]
[310968864,1704836048554,-1012.62,0.00042164,30]
[310968865,1704836048563,-568.08,0.00042164,30]
[310968866,1704836048573,-500.0,0.00042164,30]
[310968867,1704836048584,-1247.69,0.00042164,30]
[310968868,1704836048594,-500.0,0.00042164,30]
[310968869,1704836048604,-504.29,0.00042164,30]
[310968870,1704836048614,-744.29,0.00042164,30]
[310968871,1704836048624,-1071.67,0.00042164,30]
[310968872,1704836048634,-1041.65,0.00042164,30]
[310968873,1704836048644,-500.0,0.00042164,30]
[310968874,1704836048655,-597.48,0.00042164,30]
[310968875,1704836048666,-670.96,0.00042164,30]
[310968876,1704836048677,-992.5,0.00042164,30]
[310968877,1704836048688,-500.0,0.00042164,30]
[310968878,1704836048698,-1379.24,0.00042164,30]
[310968879,1704836048710,-891.81,0.00042164,30]
[310968880,1704836048720,-500.0,0.00042164,30]
[310968881,1704836048729,-3464.95,0.00042164,30]
[310968882,1704836048739,-838.55,0.00042164,30]
[310968883,1704836048749,-660.81,0.00042164,30]
[310968884,1704836048758,-1525.96,0.00042164,30]
[310968885,1704836048768,-940.28,0.00042164,30]
[310968886,1704836048778,-797.09,0.00042164,30]
[310968887,1704836048787,-500.0,0.00042164,30]
[310968888,1704836048796,-1021.78,0.00042164,30]
[310968889,1704836048805,-500.0,0.00042164,30]
[310968890,1704836048814,-765.32,0.00042164,30]
[310968891,1704836048824,-624.2,0.00042164,30]
[310968892,1704836048833,-1106.38,0.00042164,30]
[310968893,1704836049169,-581.2,0.00042164,30]
[310968894,1704836049178,-1950.33,0.00042164,30]
[310968895,1704836049188,-779.64,0.00042164,30]
[310968896,1704836049197,-500.0,0.00042164,30]
[310968897,1704836049209,-557.57,0.00042164,30]
[310968898,1704836049218,-742.05,0.00042164,30]
[310968899,1704836049228,-578.59,0.00042164,30]
[310968900,1704836049237,-718.23,0.00042164,30]
[310968901,1704836049247,-500.0,0.00042164,30]
[310968902,1704836049256,-1681.49,0.00042164,30]
[310968903,1704836049266,-667.7,0.00042164,30]
[310968904,1704836049275,-500.0,0.00042164,30]
[310968905,1704836049285,-500.0,0.00042164,30]
[310968906,1704836049295,-500.0,0.00042164,30]
[310968907,1704836049304,-803.72,0.00042164,30]
[310968908,1704836049314,-691.09,0.00042164,30]
[310968909,1704836049323,-820.84,0.00042164,30]
[310968910,1704836049333,-500.0,0.00042164,30]
[310968911,1704836049342,-500.0,0.00042164,7]
[310968912,1704836049352,-500.0,0.00042164,30]
[310968913,1704836049362,-500.0,0.00042164,30]
[310968914,1704836049371,-612.42,0.00042164,30]
[310968915,1704836049382,-500.0,0.00042164,30]
[310968916,1704836049391,-269.53141393,0.00042164,30]
[310968917,1704836049401,-328.05851285,0.00042164,30]
[310968918,1704836049412,-700.31,0.00042164,30]
[310968919,1704836049423,-1173.84,0.00042164,30]
[310968920,1704836049433,-890.72,0.00042164,30]
[310968921,1704836049442,-519.17,0.00042164,30]
[310968922,1704836049451,-681.49,0.00042164,30]
[310968923,1704836049463,-627.48,0.00042164,30]
[310968924,1704836049473,-1141.38,0.00042164,30]
[310968925,1704836049483,-596.45,0.00042164,30]
[310968926,1704836049493,-1148.32,0.00042164,30]
[310968927,1704836049504,-616.05,0.00042164,30]
[310968928,1704836049513,-1154.54,0.00042164,30]
[310968929,1704836049522,-500.0,0.00042164,30]
[310968930,1704836049531,-622.7,0.00042164,30]
[310968931,1704836049540,-1370.57,0.00042164,30]
[310968932,1704836049549,-724.45,0.00042164,30]
[310968933,1704836049559,-555.95,0.00042164,30]
[310968934,1704836049568,-677.52,0.00042164,30]
[310968935,1704836049578,-500.0,0.00042164,30]
[310968936,1704836049587,-500.0,0.00042164,30]
[310968937,1704836049596,-500.0,0.00042164,30]
[310968938,1704836049606,-500.0,0.00042164,30]
[310968939,1704836049615,-500.0,0.00042164,30]
[310968940,1704836049625,-854.7,0.00042164,30]
[310968941,1704836049635,-1132.67,0.00042164,30]
[310968942,1704836049644,-500.0,0.00042164,30]
[310968943,1704836049654,-950.79,0.00042164,30]
[310968944,1704836049664,-500.0,0.00042164,30]
[310968945,1704836049673,-500.0,0.00042164,30]
[310968946,1704836049683,-1393.23,0.00042164,30]
[310968947,1704836049692,-1054.09,0.00042164,30]
[310968948,1704836049702,-271.87923499,0.00042164,30]
[310968949,1704836049714,-500.0,0.00042164,30]
[310968950,1704836049723,-206.11162682,0.00042164,30]
[310968951,1704836049732,-982.92,0.00042164,30]
[310968952,1704836049741,-897.66,0.00042164,30]
[310968953,1704836049751,-612.78,0.00042164,30]
[310968954,1704836049760,-1038.74,0.00042164,30]
[310968955,1704836049770,-500.0,0.00042164,30]
[310968956,1704836049779,-585.83,0.00042164,30]
[310968957,1704836049793,-1010.24,0.00042164,30]
[310968958,1704836049803,-625.2,0.00042164,30]
[310968959,1704836049812,-500.0,0.00042164,30]
[310968960,1704836049822,-500.0,0.00042164,30]
[310968961,1704836049831,-1823.52,0.00042164,30]
[310968962,1704836049841,-1503.9,0.00042164,30]
[310968963,1704836049850,-975.74,0.00042164,30]
[310968964,1704836049860,-860.51,0.00042164,30]
[310968965,1704836049870,-693.44,0.00042164,30]
[310968966,1704836049880,-1252.33,0.00042164,30]
[310968967,1704836049890,-812.42,0.00042164,30]
[310968968,1704836049899,-500.0,0.00042164,30]
[310968969,1704836049909,-1661.63,0.00042164,30]
[310968970,1704836049918,-835.41,0.00042164,30]
[310968971,1704836049928,-929.16,0.00042164,30]
[310968972,1704836049937,-500.0,0.00042164,30]
[310968973,1704836049947,-996.89,0.00042164,4]
[310968974,1704836049956,-500.0,0.00042164,30]
[310968975,1704836049968,-500.0,0.00042164,30]
[310968976,1704836049978,-500.0,0.00042164,30]
[310968977,1704836049988,-1020.06,0.00042164,30]
[310968978,1704836049997,-955.18,0.00042164,30]
[310968979,1704836050007,-500.0,0.00042164,30]
[310968980,1704836050017,-1186.89,0.00042164,30]
[310968981,1704836050027,-500.0,0.00042164,2]
[310968982,1704836050036,-636.74,0.00042164,30]
[310968983,1704836050046,-768.37,0.00042164,30]
[310968984,1704836050056,-623.64,0.00042164,30]
[310968985,1704836050066,-500.0,0.00042164,30]
[310968986,1704836050075,-1030.22,0.00042164,30]
[310968987,1704836050086,-848.66,0.00042164,30]
[310968988,1704836050096,-500.0,0.00042164,30]
[310968989,1704836050106,-1351.73,0.00042164,30]
[310968990,1704836050115,-1236.91,0.00042164,30]
[310968991,1704836050125,-555.34,0.00042164,30]
[310968992,1704836050135,-500.0,0.00042164,30]
[310968993,1704836050145,-551.84,0.00042164,30]
[310968994,1704836050155,-634.14,0.00042164,30]
[310968995,1704836050166,-576.84,0.00042164,30]
[310968996,1704836050175,-1038.11,0.00042164,30]
[310968997,1704836050185,-500.0,0.00042164,30]
[310968998,1704836050196,-313.85,0.00042164,30]
[310968999,1704836050205,-1358.69,0.00042164,30]
[310969000,1704836050219,-1217.37,0.00042164,30]
[310969001,1704836050229,-500.0,0.00042164,30]
[310969002,1704836050239,-500.0,0.00042164,30]
[310969003,1704836050249,-500.0,0.00042164,30]
[310969004,1704836050260,-1307.04,0.00042164,30]
[310969005,1704836050270,-2306.18,0.00042164,30]
[310969006,1704836050280,-500.0,0.00042164,30]
[310969007,1704836050290,-1192.74,0.00042164,30]
[310969008,1704836050301,-611.23,0.00042164,30]
[310969009,1704836050310,-907.9,0.00042164,30]
[310969010,1704836050320,-996.68,0.00042164,30]
[310969011,1704836050330,-500.0,0.00042164,30]
[310969012,1704836050340,-500.0,0.00042164,30]
[310969013,1704836050349,-627.06,0.00042164,30]
[310969014,1704836050359,-500.0,0.00042164,30]
[310969015,1704836050369,-500.0,0.00042164,30]
[310969016,1704836050380,-503.95,0.00042164,30]
[310969017,1704836050390,-500.0,0.00042164,30]
[310969018,1704836050400,-968.8,0.00042164,30]
[310969019,1704836050410,-1396.88,0.00042164,30]
[310969020,1704836050420,-635.82,0.00042164,30]
[310969021,1704836050430,-1404.61,0.00042164,30]
[310969022,1704836050439,-500.0,0.00042164,30]
[310969023,1704836050449,-1231.44,0.00042164,30]
[310969024,1704836050462,-500.0,0.00042164,30]
[310969025,1704836050472,-554.78,0.00042164,30]
[310969026,1704836050482,-500.0,0.00042164,30]
[310969027,1704836050491,-1277.69518878,0.00042164,30]
[310969028,1704836051013,-485.83481122,0.00042164,30]
[310969029,1704836051024,-500.0,0.00042164,30]
[310969030,1704836051035,-801.87,0.00042164,30]
[310969031,1704836051045,-500.0,0.00042164,30]
[310969032,1704836051055,-604.58,0.00042164,30]
[310969033,1704836051066,-1257.01,0.00042164,30]
[310969034,1704836051076,-1231.81,0.00042164,30]
[310969035,1704836051086,-2010.91,0.00042164,30]
[310969036,1704836051095,-1440.75,0.00042164,30]
[310969037,1704836051106,-896.14,0.00042164,30]
[310969038,1704836051116,-500.0,0.00042164,30]
[310969039,1704836051126,-1418.35,0.00042164,30]
[310969040,1704836051135,-632.29,0.00042164,30]
[310969041,1704836051145,-808.1,0.00042164,30]
[310969042,1704836051155,-921.45,0.00042164,30]
[310969043,1704836051166,-1186.03,0.00042164,30]
[310969044,1704836051176,-1164.7,0.00042164,30]
[310969045,1704836051189,-640.28,0.00042164,30]
[310969046,1704836051200,-1105.56,0.00042164,30]
[310969047,1704836051212,-602.96,0.00042164,30]
[310969048,1704836051222,-943.57,0.00042164,30]
[310969049,1704836051232,-500.0,0.00042164,30]
[310969050,1704836051241,-771.07,0.00042164,30]
[310969051,1704836051251,-1027.4,0.00042164,30]
[310969052,1704836051261,-326.83518878,0.00042164,30]
[310969053,1704836051273,-173.16481122,0.00042164,30]
[310969054,1704836051283,-500.0,0.00042164,30]
[310969055,1704836051293,-1051.31,0.00042164,30]
[310969056,1704836051303,-500.0,0.00042164,30]
[310969057,1704836051313,-916.0,0.00042164,30]
[310969058,1704836051323,-500.0,0.00042164,5]
[310969059,1704836051333,-1267.33,0.00042164,30]
[310969060,1704836051343,-538.74,0.00042164,7]
[310969061,1704836051354,-701.87,0.00042164,30]
[310969062,1704836051364,-1238.29,0.00042164,30]
[310969063,1704836051374,-759.13,0.00042164,30]
[310969064,1704836051388,-500.0,0.00042164,30]
[310969065,1704836051398,-1550.35,0.00042164,30]
[310969066,1704836051408,-500.0,0.00042164,30]
[310969067,1704836051420,-639.29,0.00042164,30]
[310969068,1704836051430,-606.97,0.00042164,30]
[310969069,1704836051440,-836.7,0.00042164,30]
[310969070,1704836051449,-667.99,0.00042164,30]
[310969071,1704836051462,-500.0,0.00042164,30]
[310969072,1704836051472,-896.55,0.00042164,30]
[310969073,1704836051483,-500.0,0.00042164,30]
[310969074,1704836051494,-1272.22,0.00042164,30]
[310969075,1704836051504,-814.27,0.00042164,30]
[310969076,1704836051515,-548.7,0.00042164,30]
[310969077,1704836051525,-689.54,0.00042164,30]
[310969078,1704836051535,-515.4,0.00042164,30]
[310969079,1704836051545,-2289.47,0.00042164,30]
[310969080,1704836051555,-1865.7,0.00042164,30]
[310969081,1704836051565,-1819.38,0.00042164,30]
[310969082,1704836051575,-500.0,0.00042164,30]
[310969083,1704836051585,-1130.6,0.00042164,30]
[310969084,1704836051594,-500.0,0.00042164,30]
[310969085,1704836051604,-1020.46,0.00042164,30]
[310969086,1704836051615,-765.7,0.00042164,30]
[310969087,1704836051625,-808.92,0.00042164,30]
[310969088,1704836051635,-500.0,0.00042164,30]
[310969089,1704836051645,-806.27,0.00042164,30]
[310969090,1704836051809,-1306.79,0.00042164,30]
[310969091,1704836051820,-500.0,0.00042164,30]
[310969092,1704836051832,-500.0,0.00042164,30]
[310969093,1704836051842,-694.96,0.00042164,30]
[310969094,1704836051852,-1503.44,0.00042164,30]
[310969095,1704836051863,-500.0,0.00042164,30]
[310969096,1704836051873,-805.81,0.00042164,30]
[310969097,1704836051883,-228.52502126,0.00042164,30]
[310969098,1704836051892,-909.79,0.00042164,30]
[310969099,1704836051902,-1129.19,0.00042164,30]
[310969100,1704836051913,-399.44261226,0.00042164,30]
[310969101,1704836051923,-328.39432577,0.00042164,30]
[310969102,1704836051938,-595.48567423,0.00042164,30]
[310969103,1704836051948,-611.47,0.00042164,30]
[310969104,1704836051957,-1216.1085816,0.00042164,30]
[310969105,1704836051972,-1887.6714184,0.00042164,30]
[310969106,1704836051981,-500.0,0.00042164,30]
[310969107,1704836051991,-500.0,0.00042164,30]
[310969108,1704836052000,-500.0,0.00042164,30]
[310969109,1704836052010,-500.0,0.00042164,30]
[310969110,1704836052019,-1156.51718964,0.00042164,30]
[310969111,1704836052086,-5054.11,0.00041095,30]
[310969112,1704836052096,-1808.65,0.0004126,30]
[310969113,1704836052106,-5348.86,0.00041342,30]
[310969114,1704836052116,-961.05,0.00041671,30]
[310969115,1704836052126,-737.62,0.00041835,30]
[310969116,1704836052136,-2094.52281036,0.00042164,30]
[310969117,1704836052146,-500.0,0.00042164,30]
[310969118,1704836052155,-740.01,0.00042164,30]
[310969119,1704836052164,-546.86,0.00042164,30]
[310969120,1704836052174,-1698.45,0.00042164,30]
[310969121,1704836052184,-500.0,0.00042164,30]
[310969122,1704836052193,-500.0,0.00042164,30]
[310969123,1704836052203,-500.0,0.00042164,30]
[310969124,1704836052217,-500.0,0.00042164,30]
[310969125,1704836052227,-1031.59,0.00042164,30]
[310969126,1704836052236,-739.45,0.00042164,30]
[310969127,1704836052246,-500.0,0.00042164,30]
[310969128,1704836052256,-1341.58,0.00042164,30]
[310969129,1704836052266,-500.0,0.00042164,30]
[310969130,1704836052277,-579.92,0.00042164,30]
[310969131,1704836052287,-962.12,0.00042164,30]
[310969132,1704836052298,-12867.13,0.00042164,30]
[310969133,1704836052307,-897.67,0.00042164,30]
[310969134,1704836052317,-550.26,0.00042164,30]
[310969135,1704836052328,-864.6,0.00042164,30]
[310969136,1704836052338,-550.03,0.00042164,30]
[310969137,1704836052349,-1997.12,0.00042164,30]
[310969138,1704836052358,-998.19,0.00042164,30]
[310969139,1704836052369,-1195.83,0.00042164,30]
[310969140,1704836052383,-500.0,0.00042164,30]
[310969141,1704836052393,-48899.91,0.00042164,30]
[310969142,1704836052404,-231.83814278,0.00042164,30]
[310969143,1704836052415,-654.66,0.00042164,30]
[310969144,1704836052431,-2469.86,0.00042164,30]
[310969145,1704836052441,-808.31,0.00042164,30]
[310969146,1704836052451,-673.33,0.00042164,30]
[310969147,1704836052465,-500.0,0.00042164,30]
[310969148,1704836052474,-626.68,0.00042164,30]
[310969149,1704836052484,-2801.21,0.00042164,30]
[310969150,1704836052494,-2521.48,0.00042164,30]
[310969151,1704836052504,-886.46,0.00042164,30]
[310969152,1704836052514,-1955.03,0.00042164,30]
[310969153,1704836052524,-767.91,0.00042164,30]
[310969154,1704836052535,-500.0,0.00042164,30]
[310969155,1704836052545,-2192.68,0.00042164,30]
[310969156,1704836052555,-991.57,0.00042164,30]
[310969157,1704836052565,-1009.87,0.00042164,7]
[310969158,1704836052576,-500.0,0.00042164,30]
[310969159,1704836052586,-500.0,0.00042164,30]
[310969160,1704836052597,-828.51,0.00042164,30]
[310969161,1704836052608,-500.0,0.00042164,30]
[310969162,1704836052618,-2108.88,0.00042164,30]
[310969163,1704836052628,-1931.34,0.00042164,30]
[310969164,1704836052639,-3347.6,0.00042164,30]
[310969165,1704836052650,-14790.64,0.00042164,30]
[310969166,1704836052661,-822.65,0.00042164,30]
[310969167,1704836052671,-1430.23,0.00042164,30]
[310969168,1704836052681,-5678.13,0.00042164,30]
[310969169,1704836052691,-610.39,0.00042164,30]
[310969170,1704836052701,-1617.86,0.00042164,30]
[310969171,1704836052714,-1087.77,0.00042164,30]
[310969172,1704836052723,-2799.84,0.00042164,30]
[310969173,1704836052732,-733.18,0.00042164,30]
[310969174,1704836052742,-500.0,0.00042164,30]
[310969175,1704836052751,-500.0,0.00042164,30]
[310969176,1704836052761,-1593.04,0.00042164,30]
[310969177,1704836052771,-500.0,0.00042164,30]